bitfinex/quotes_ETHUSD_20240907
["timestamp","ask_amount","ask_price","bid_price","bid_amount"]
[1725723171659,2.0,2311.8,2311.5,4.32604]
[1725723171928,0.55,2311.7,2311.5,4.32604]
[1725723172392,2.0,2311.5,2311.1,4.32683]
[1725723172557,5.0,2311.5,2311.1,4.32683]
[1725723172756,5.0,2311.5,2310.9,4.3272]
[1725723172757,4.87641,2311.4,2310.9,4.3272]
[1725723173186,3.0,2311.3,2310.9,4.3272]
[1725723173502,0.55,2311.2,2310.9,4.3272]
[1725723173802,0.55,2311.2,2311.0,4.32707]
[1725723174099,3.55,2311.2,2311.0,4.32707]
[1725723174297,3.55,2311.2,2310.8,4.32749]
[1725723174298,2.55,2311.2,2310.8,4.32749]
[1725723174506,3.0,2311.1,2310.8,4.32749]
[1725723174667,0.55,2311.0,2310.8,4.32749]
[1725723175171,0.55,2311.0,2310.9,4.32731]
[1725723176173,0.55,2311.0,2310.8,4.32749]
[1725723176375,0.55,2311.0,2310.9,4.32731]
[1725723176710,0.55,2311.0,2310.9,8.65462]
[1725723178821,0.555,2311.7,2311.5,4.32608]
[1725723178985,0.555,2311.7,2311.3,8.65287]
[1725723179186,0.555,2311.7,2311.4,4.32623]
[1725723179476,2.0,2311.8,2311.3,8.65286]
[1725723179786,2.0,2311.8,2311.3,4.32639]
[1725723179983,3.68221564,2311.7,2311.3,4.32639]
[1725723180183,3.0,2311.6,2311.1,4.32675]
[1725723180440,3.0,2311.6,2311.2,4.32665]
[1725723180612,1.10081156,2311.5,2311.2,4.32665]
[1725723181345,0.55,2311.4,2311.2,4.32665]
[1725723181485,0.55,2311.4,2311.3,4.32656]
[1725723182012,3.0,2311.6,2311.5,4.32619]
[1725723182351,1.8006,2312.0,2311.5,4.32619]
[1725723182623,2.98192983,2312.0,2311.8,4.32562]
[1725723182993,2.98192983,2312.0,2311.9,0.06120513]
[1725723183855,2.98192983,2312.0,2311.6,8.65172]
[1725723184162,0.55,2311.9,2311.7,4.32572]
[1725723184656,0.55,2311.9,2311.8,4.32563]
[1725723184831,3.55,2311.9,2311.8,4.32563]
[1725723185772,4.40319298,2311.9,2311.6,8.65172]
[1725723186056,4.40319298,2311.9,2311.6,8.65174]
[1725723186555,4.40319298,2311.9,2311.7,4.32578]
[1725723186759,4.40319298,2311.9,2311.8,4.32563]
[1725723186985,3.55,2311.9,2311.8,4.32563]
[1725723188022,20.61514939,2312.3,2311.8,4.32563]
[1725723188023,2.59954865,2312.7,2311.8,4.32563]
[1725723188225,2.0,2313.0,2312.8,4.32373]
[1725723188481,0.45320463,2313.2,2313.1,4.3232]
[1725723188656,0.45320463,2313.2,2313.1,8.6464]
[1725723189035,0.45320463,2313.2,2313.1,12.9696]
[1725723189222,0.45320463,2313.2,2313.1,16.393]
[1725723189854,0.45320463,2313.2,2313.1,12.0698]
[1725723190365,1.8006,2313.8,2313.4,4.32253]
[1725723190564,9.55611,2313.9,2313.3,4.32278]
[1725723190765,0.955611,2313.8,2313.3,4.32278]
[1725723191635,3.955611,2313.8,2313.3,4.32278]
[1725723191846,4.32284,2313.3,2312.8,4.32364]
[1725723192031,4.32284,2313.3,2312.5,3.4234]
[1725723192032,3.0,2313.2,2312.5,3.4234]
[1725723192260,3.0,2313.2,2313.1,4.3232]
[1725723192447,2.0,2313.5,2313.1,4.3232]
[1725723193134,2.0,2313.5,2313.0,8.64643]
[1725723193333,2.0,2313.5,2313.1,4.32319]
[1725723193980,2.0,2313.5,2313.0,4.3232]
[1725723194272,2.0,2313.5,2312.5,7.74767]
[1725723194273,2.0,2313.5,2312.8,4.32365]
[1725723194527,1.182234,2313.4,2312.8,4.32365]
[1725723194661,1.182234,2313.4,2312.9,4.32339]
[1725723194975,4.182234,2313.4,2312.9,4.32339]
[1725723195478,4.182234,2313.4,2313.0,4.32338]
[1725723195649,3.632234,2313.4,2313.0,4.32327]
[1725723195872,0.5632234,2313.3,2313.0,4.32327]
[1725723196180,0.5632234,2313.3,2312.8,4.32367]
[1725723196380,0.5632234,2313.3,2312.8,4.32363]
[1725723196771,0.5632234,2313.3,2313.0,4.32336]
[1725723196955,0.5632234,2313.3,2312.8,4.32363]
[1725723197155,0.35632234,2313.2,2312.8,4.32363]
[1725723197384,0.35632234,2313.2,2312.9,0.05594336]
[1725723197568,0.5632234,2313.3,2312.9,0.05594336]
[1725723197781,0.5632234,2313.3,2313.0,4.32336]
[1725723197973,3.0,2313.4,2313.2,4.32301]
[1725723198174,3.0,2313.4,2313.3,0.05546047]
[1725723198375,2.0,2313.5,2313.0,4.32325]
[1725723198701,2.0,2313.5,2313.2,4.32299]
[1725723198861,2.0,2313.5,2313.1,4.37887476]
[1725723199063,0.5,2313.4,2313.3,0.05546047]
[1725723199292,2.0,2313.5,2313.3,4.32272]
[1725723199568,0.955611,2313.8,2313.4,4.32263]
[1725723199871,3.8006,2313.9,2313.5,0.05519903]
[1725723200081,2.45313887,2314.2,2313.7,4.3219]
[1725723200311,2.45313887,2314.2,2313.8,4.32174]
[1725723200467,2.45313887,2314.2,2313.8,4.3764811]
[1725723200669,0.45313887,2314.2,2314.0,4.32139]
[1725723200888,0.45313887,2314.2,2314.1,4.32133]
[1725723201087,0.45313887,2314.2,2314.1,8.6970349]
[1725723201302,1.8006,2314.6,2314.4,4.32066]
[1725723201604,9.62987,2315.1,2313.8,4.32186]
[1725723201605,0.45302774,2314.8,2314.7,4.32021]
[1725723201804,3.8006,2315.1,2314.8,4.32]
[1725723201805,2.0,2315.1,2314.8,4.32]
[1725723202165,0.4529961,2315.3,2314.9,0.05279203]
[1725723202477,0.42535961,2315.2,2315.0,4.31963]
[1725723202682,0.42535961,2315.2,2315.0,4.3718937]
[1725723202864,0.42535961,2315.2,2315.0,0.0522637]
[1725723203203,0.42535961,2315.2,2315.1,0.05214175]
[1725723203361,0.42535961,2315.2,2314.6,8.64048]
[1725723203675,0.42535961,2315.2,2314.7,0.05262962]
[1725723204576,6.31961,2315.1,2314.7,0.05262962]
[1725723204777,6.31961,2315.1,2314.2,4.32109]
[1725723204778,1.79564361,2315.0,2314.2,4.32109]
[1725723204996,2.0,2314.8,2314.3,0.05311765]
[1725723205307,5.0,2314.8,2314.2,4.32101]
[1725723205476,4.32037,2314.7,2314.4,0.05299563]
[1725723205684,0.55,2314.7,2314.0,4.32137]
[1725723205869,0.687005,2314.6,2314.5,0.05287361]
[1725723206068,0.687005,2314.6,2314.0,4.32136]
[1725723206289,0.687005,2314.6,2314.5,0.05287361]
[1725723206495,0.687005,2314.6,2314.0,4.32136]
[1725723206496,5.007435,2314.6,2314.0,4.32136]
[1725723206803,5.007435,2314.6,2314.2,4.321]
[1725723206804,4.1867735,2314.5,2314.2,4.321]
[1725723207104,3.0,2314.4,2314.2,4.321]
[1725723207473,1.1867735,2314.5,2314.2,4.321]
[1725723207668,3.55,2314.7,2314.2,4.321]
[1725723208012,7.87032,2314.7,2314.0,4.32139]
[1725723208305,7.87032,2314.7,2314.1,4.32129]
[1725723209090,7.87032,2314.7,2314.0,4.32139]
[1725723209293,7.87032,2314.7,2314.0,8.64278]
[1725723209552,1.419048,2314.6,2314.1,4.32126]
[1725723209804,1.419048,2314.6,2314.2,4.32113]
[1725723209965,1.419048,2314.6,2314.2,8.64226]
[1725723210479,1.419048,2314.6,2314.3,4.32093]
[1725723210667,1.419048,2314.6,2314.2,4.32103]
[1725723210863,3.0,2314.7,2314.4,4.32064]
[1725723211064,3.0,2314.9,2314.5,4.32045]
[1725723212494,3.0,2314.9,2314.6,0.05276878]
[1725723213213,7.31985,2314.9,2314.6,0.05276878]
[1725723213424,7.31985,2314.9,2314.3,8.64171]
[1725723213624,1.34351436,2314.8,2314.7,0.05264678]
[1725723213786,1.34351436,2314.8,2314.4,4.32074]
[1725723213990,1.34351436,2314.8,2314.5,0.05289078]
[1725723214545,3.34351436,2314.8,2314.5,0.05289078]
[1725723214726,3.0,2314.7,2314.5,0.05289078]
[1725723214889,0.63435144,2314.6,2314.3,4.32085]
[1725723215283,0.63435144,2314.6,2314.4,4.32067]
[1725723215513,0.63435144,2314.6,2314.3,8.6417]
[1725723215721,0.63435144,2314.6,2314.4,4.32077]
[1725723216082,0.63435144,2314.6,2314.5,4.32058]
[1725723216322,0.025793,2314.7,2314.5,4.32058]
[1725723216616,0.025793,2314.7,2314.6,4.3204]
[1725723218533,0.025793,2314.7,2314.6,8.6408]
[1725723221208,0.025793,2314.7,2314.6,16.3739]
[1725723222030,0.025793,2314.7,2314.6,20.6943]
[1725723222221,1.8006,2315.3,2314.6,12.0535]
[1725723222448,4.3179,2316.0,2315.6,4.31839]
[1725723222449,1.8006,2316.0,2315.6,4.31839]
[1725723222663,9.78323,2316.1,2315.7,4.31832]
[1725723222811,0.978323,2316.0,2315.7,4.31832]
[1725723223017,0.45279263,2315.9,2315.6,4.31839]
[1725723223518,0.45279263,2315.9,2315.4,4.31879]
[1725723223519,0.45279263,2315.9,2315.8,4.31816]
[1725723223720,0.45279263,2315.9,2315.7,4.31834]
[1725723223920,0.45279263,2315.9,2315.5,4.31857]
[1725723224124,1.12983389,2315.9,2315.7,4.31832]
[1725723224320,0.45279263,2315.9,2315.7,8.63664]
[1725723224590,0.45279263,2315.9,2315.8,4.31816]
[1725723224936,0.45279263,2315.9,2315.8,12.04902]
[1725723225250,9.21774653,2316.7,2316.0,4.31767]
[1725723225251,9.78208,2316.7,2316.0,4.31767]
[1725723225417,4.31672,2316.6,2316.1,4.31758]
[1725723225613,0.45272215,2316.3,2316.1,4.31758]
[1725723226047,0.45272215,2316.3,2315.8,4.31802]
[1725723226312,0.45272215,2316.3,2316.0,4.31775]
[1725723226634,0.45272215,2316.3,2315.9,4.31796]
[1725723226839,0.45272215,2316.3,2315.8,4.31802]
[1725723226840,3.4923,2316.2,2315.8,4.31802]
[1725723227149,3.0,2316.1,2315.9,4.31794]
[1725723227357,0.24527222,2316.2,2315.9,4.31794]
[1725723227555,0.24527222,2316.2,2316.0,0.04892033]
[1725723227716,0.24527222,2316.2,2316.0,4.36669033]
[1725723227919,0.24527222,2316.2,2316.0,0.04892033]
[1725723228234,0.24527222,2316.2,2315.9,4.31795]
[1725723228460,0.24527222,2316.2,2316.1,0.04879849]
[1725723228631,0.24527222,2316.2,2316.0,0.04892033]
[1725723228834,0.24527222,2316.2,2316.1,0.04879849]
[1725723229066,3.45272215,2316.3,2316.1,0.04879849]
[1725723229271,0.45272215,2316.3,2316.2,8.63482]
[1725723229427,0.45272215,2316.3,2316.2,8.68349665]
[1725723229634,5.2929,2317.0,2316.3,4.31711]
[1725723229831,2.85845883,2316.9,2316.5,4.31684]
[1725723230068,0.45258283,2316.9,2316.5,4.31675]
[1725723230272,0.45258283,2316.9,2316.6,0.05163152]
[1725723230757,3.4923,2316.8,2316.6,0.05163152]
[1725723230955,0.45258283,2316.9,2316.6,4.36829152]
[1725723231230,0.45258283,2316.9,2316.7,0.05131742]
[1725723231456,1.47865611,2316.9,2316.7,0.05131742]
[1725723231666,5.79487611,2316.9,2316.7,0.05131742]
[1725723231831,5.79487611,2316.9,2316.4,4.31691]
[1725723231832,3.0,2316.8,2316.4,4.31691]
[1725723232034,3.0,2316.8,2316.4,8.63384]
[1725723232536,3.0,2316.8,2316.4,8.63385]
[1725723232736,3.87948761,2316.8,2316.4,4.31691]
[1725723232931,3.87948761,2316.8,2316.4,8.63385]
[1725723233138,3.87948761,2316.8,2316.4,4.31691]
[1725723233376,5.87948761,2316.8,2316.2,4.31727]
[1725723233543,5.87948761,2316.8,2316.4,4.31704]
[1725723233744,1.16743637,2316.7,2316.4,4.31704]
[1725723234171,1.16743637,2316.7,2316.2,4.31724]
[1725723234371,1.16743637,2316.7,2316.3,4.3172]
[1725723234638,1.16743637,2316.7,2316.3,4.31716]
[1725723234863,1.16743637,2316.7,2316.2,4.31724]
[1725723235071,4.6286224,2316.6,2316.2,4.31724]
[1725723235242,3.0,2316.5,2316.2,4.31724]
[1725723235445,3.0,2316.5,2316.2,8.63456]
[1725723235641,3.0,2316.5,2316.2,4.31724]
[1725723235900,3.0,2316.5,2316.2,8.63455]
[1725723236180,3.77170163,2316.5,2316.2,8.63456]
[1725723236384,3.77170163,2316.5,2316.2,4.31724]
[1725723236787,3.77170163,2316.5,2315.7,7.59138]
[1725723236788,4.31713,2316.4,2315.8,8.63608]
[1725723237084,3.0,2316.3,2315.9,4.31792]
[1725723237395,4.44056916,2316.3,2315.9,4.31792]
[1725723237746,4.44056916,2316.3,2315.8,4.31802]
[1725723237985,8.75792916,2316.3,2315.8,4.31802]
[1725723238294,8.75792916,2316.3,2315.6,4.31843]
[1725723238295,4.31788,2316.0,2315.4,4.3188]
[1725723238587,3.0,2315.9,2315.4,4.31876]
[1725723238888,3.0,2315.9,2315.2,4.31928]
[1725723239057,3.0,2315.9,2315.6,4.31851]
[1725723239258,1.32654665,2315.9,2315.6,4.31851]
[1725723240656,1.32654665,2315.9,2315.4,8.63754]
[1725723240853,4.31853,2315.6,2314.8,7.53081]
[1725723241060,3.0,2315.5,2315.0,4.31954]
[1725723241286,3.931853,2315.5,2315.0,4.31954]
[1725723241495,0.931853,2315.5,2314.8,4.31991]
[1725723241665,5.9143,2315.4,2314.8,4.31991]
[1725723241995,3.0,2315.3,2314.6,4.32024]
[1725723242285,3.0,2315.3,2314.4,3.2109]
[1725723242286,4.90116653,2315.2,2314.5,4.32056]
[1725723242495,4.90116653,2315.2,2314.7,0.05041392]
[1725723242496,3.3643,2315.0,2314.7,0.05041392]
[1725723242699,3.3643,2315.0,2314.6,0.05053591]
[1725723242993,3.3643,2315.0,2314.4,4.32066]
[1725723242994,3.0,2314.9,2314.7,0.05041392]
[1725723243159,3.0,2314.9,2314.5,4.32058]
[1725723243367,3.0,2314.9,2314.6,0.05053591]
[1725723243565,4.40241767,2314.9,2314.6,0.05053591]
[1725723243906,4.32043,2314.6,2314.0,4.32138]
[1725723244076,4.32087,2314.4,2313.8,4.32172]
[1725723244583,3.0,2314.3,2313.8,4.32172]
[1725723244789,3.0,2314.3,2313.6,4.32214]
[1725723244790,6.32115,2314.2,2313.6,4.32214]
[1725723244963,2.0,2313.9,2313.3,4.32277]
[1725723245167,6.32231,2313.6,2313.0,4.32333]
[1725723245372,7.68687,2313.5,2312.8,8.64731]
[1725723245572,11.23687,2313.5,2312.8,4.32363]
[1725723245768,10.401348,2313.4,2312.8,4.32363]
[1725723245967,10.401348,2313.4,2312.6,4.32405]
[1725723245968,5.0,2313.3,2312.6,4.32405]
[1725723246206,4.87303,2313.2,2312.6,4.32405]
[1725723246412,3.0,2313.1,2312.6,4.324]
[1725723246698,3.0,2313.1,2312.7,4.32393]
[1725723246922,6.87341,2313.0,2312.4,4.32438]
[1725723247208,6.3643,2312.9,2312.4,4.32438]
[1725723247504,6.3643,2312.9,2312.5,4.32428]
[1725723247821,6.3643,2312.9,2312.4,4.32438]
[1725723248019,8.23366665,2312.9,2312.5,4.32427]
[1725723248179,6.3643,2312.9,2312.6,4.32408]
[1725723248500,6.3643,2312.9,2312.7,4.32395]
[1725723248501,3.0,2312.9,2312.7,4.32395]
[1725723248709,3.0,2312.9,2312.5,8.6485]
[1725723249008,4.90116653,2313.1,2312.6,4.3241]
[1725723249215,3.0,2313.0,2312.6,4.3241]
[1725723249506,3.0,2313.0,2312.7,4.32393]
[1725723249804,3.0,2313.0,2312.5,4.32417]
[1725723250205,3.0,2313.0,2312.5,8.64837]
[1725723250609,3.0,2313.0,2312.5,4.32417]
[1725723250774,3.0,2313.0,2312.5,8.64836]
[1725723251113,3.0,2313.0,2312.5,4.32417]
[1725723251266,4.65474765,2313.0,2312.5,4.32417]
[1725723252004,4.65474765,2313.0,2312.3,4.32462]
[1725723252005,12.45,2313.7,2313.4,4.32262]
[1725723252208,5.3643,2314.4,2313.9,4.32159]
[1725723252572,5.3643,2314.4,2314.0,0.05503247]
[1725723252877,0.96849,2314.3,2314.0,0.05503247]
[1725723254118,0.96849,2314.3,2312.3,0.4338]
[1725723254119,4.3216,2314.0,2313.3,4.32269]
[1725723254273,11.22249653,2314.1,2313.3,4.32269]
[1725723254478,11.22249653,2314.1,2313.5,4.32243]
[1725723254971,3.55,2314.0,2313.6,0.0549653]
[1725723255174,1.47724965,2313.9,2313.6,0.0549653]
[1725723255496,3.0,2314.0,2313.6,4.3770853]
[1725723255821,3.0,2314.2,2313.9,4.3217]
[1725723256118,3.96849,2314.3,2314.0,0.05447697]
[1725723256422,4.32116,2314.2,2313.5,4.32234]
[1725723256566,5.0,2314.1,2313.6,4.3771253]
[1725723256877,5.0,2314.1,2313.6,0.0549653]
[1725723257083,9.32145,2314.1,2313.6,0.0549653]
[1725723257297,0.55,2314.0,2313.5,8.64468]
[1725723257478,2.09980857,2314.0,2313.7,0.0548432]
[1725723257695,2.09980857,2314.0,2313.6,4.3772253]
[1725723257893,2.09980857,2314.0,2313.8,0.05472112]
[1725723258097,2.09980857,2314.0,2313.7,0.0548432]
[1725723258282,5.03169086,2313.9,2313.3,4.32271]
[1725723258493,3.0,2313.8,2313.3,4.32271]
[1725723258673,2.0,2313.7,2313.3,4.32271]
[1725723258897,0.55,2313.6,2313.3,4.32271]
[1725723259071,3.55,2313.6,2313.3,4.32271]
[1725723260016,0.555,2313.5,2313.0,4.32323]
[1725723260613,0.555,2313.5,2313.1,4.32309]
[1725723260917,0.555,2313.5,2313.3,4.3228]
[1725723261080,3.0,2313.6,2313.3,4.32267]
[1725723261274,5.0,2313.7,2313.3,4.32267]
[1725723262544,5.0,2313.7,2313.4,4.32254]
[1725723262813,5.0,2313.7,2313.3,4.32267]
[1725723263015,0.55,2313.6,2313.1,4.32302]
[1725723263229,6.137484,2313.6,2313.1,4.32302]
[1725723263381,7.32255,2313.5,2313.0,4.32337]
[1725723264075,3.0,2313.5,2313.1,4.32304]
[1725723264278,3.0,2313.6,2313.3,4.32277]
[1725723264475,5.0,2313.7,2313.5,4.32245]
[1725723265012,5.0,2313.7,2313.3,4.32265]
[1725723265192,3.0,2313.7,2313.5,4.32235]
[1725723266380,3.0,2313.7,2313.3,8.6454]
[1725723266381,2.95,2313.7,2313.3,8.6454]
[1725723266703,2.95,2313.7,2313.3,4.32267]
[1725723266903,0.55,2313.6,2313.1,4.32306]
[1725723267102,0.55,2313.6,2313.1,8.64616]
[1725723267324,0.55,2313.6,2313.2,4.32295]
[1725723267483,0.55,2313.6,2313.3,4.32281]
[1725723268424,1.10938632,2313.6,2313.1,4.32306]
[1725723268594,1.10938632,2313.6,2313.1,8.64613]
[1725723268921,2.0,2313.3,2312.9,4.32344]
[1725723269082,9.22374653,2313.5,2312.9,4.32344]
[1725723269083,7.32279,2313.4,2312.9,4.32344]
[1725723269281,0.55,2313.3,2312.9,4.32344]
[1725723269524,2.25965365,2313.3,2312.9,4.32344]
[1725723270126,9.22430653,2313.2,2312.7,4.32392]
[1725723270623,3.55,2313.1,2312.7,4.32383]
[1725723271595,3.5,2313.1,2312.8,4.32361]
[1725723271802,3.0,2313.1,2312.8,4.32361]
[1725723272122,3.0,2313.2,2312.8,4.32361]
[1725723272293,3.0,2313.2,2312.7,4.32382]
[1725723272294,1.43627337,2313.1,2312.7,4.32382]
[1725723272482,5.75948337,2313.1,2312.9,0.05608367]
[1725723272682,7.32338,2313.0,2312.8,0.05618294]
[1725723272879,4.32338,2313.0,2312.5,4.32414]
[1725723273117,3.0,2312.9,2312.5,4.32414]
[1725723273534,3.0,2312.9,2312.5,8.64834]
[1725723273745,0.45327801,2312.8,2312.4,4.32449]
[1725723273910,0.45327801,2312.8,2312.3,8.64919]
[1725723274109,0.45327801,2312.8,2312.3,4.32455]
[1725723274330,0.45327801,2312.8,2312.4,4.32436]
[1725723274654,1.95089535,2312.8,2312.4,4.32436]
[1725723275026,5.28109535,2312.8,2312.1,4.32493]
[1725723275329,4.32417,2312.6,2312.1,4.32493]
[1725723275511,3.0,2312.5,2312.1,8.64989]
[1725723275726,7.32415,2312.6,2312.1,4.32493]
[1725723276040,4.74793354,2312.6,2312.2,4.32486]
[1725723276242,4.74793354,2312.6,2311.6,3.2038]
[1725723276243,3.0,2312.6,2312.3,4.32469]
[1725723276452,3.55,2312.7,2312.4,4.32447]
[1725723276745,3.55,2312.7,2312.5,4.3243]
[1725723277053,3.0,2312.7,2312.5,4.3243]
[1725723277698,3.0,2312.7,2312.5,4.32422]
[1725723278609,3.0,2312.7,2312.5,4.27422]
[1725723278828,3.0,2312.7,2312.5,8.59845]
[1725723279022,3.0,2312.7,2312.5,8.59844]
[1725723279222,0.45327801,2312.8,2312.5,4.27422]
[1725723280228,1.43094481,2312.8,2312.5,4.27422]
[1725723280426,4.43094481,2312.8,2312.4,4.3245]
[1725723280626,4.43094481,2312.8,2312.5,4.32427]
[1725723280839,3.45327801,2312.8,2312.6,4.32413]
[1725723281051,3.0,2312.7,2312.6,4.32404]
[1725723281361,0.45327801,2312.8,2312.6,4.32404]
[1725723281715,0.45327801,2312.8,2312.4,4.32439]
[1725723281958,0.45327801,2312.8,2312.4,8.64881]
[1725723282163,3.45327801,2312.8,2312.4,8.64881]
[1725723282363,4.86331881,2312.8,2312.4,4.27439]
[1725723282721,9.18708881,2312.8,2312.2,4.32477]
[1725723282956,4.87404,2312.7,2312.2,4.32477]
[1725723283264,3.5109,2312.5,2312.3,0.05740131]
[1725723283476,3.5109,2312.5,2312.2,4.32477]
[1725723283657,3.0,2312.4,2312.2,4.32477]
[1725723283988,3.0,2312.4,2312.2,8.64955]
[1725723284335,3.0,2312.4,2312.2,4.32477]
[1725723284576,3.0,2312.4,2312.2,8.64955]
[1725723284784,8.73026288,2312.6,2312.2,4.32477]
[1725723285252,1.36042129,2312.5,2312.2,4.32477]
[1725723285454,4.36042129,2312.5,2312.2,4.32477]
[1725723285975,8.68476129,2312.5,2312.0,4.32524]
[1725723286146,8.68476129,2312.5,2312.0,8.65048]
[1725723286347,4.36042129,2312.5,2312.1,4.32505]
[1725723286576,4.36042129,2312.5,2312.2,4.32478]
[1725723286749,4.36042129,2312.5,2312.3,4.32464]
[1725723286962,3.0,2312.5,2312.3,4.32464]
[1725723287250,5.0,2312.6,2312.3,4.32464]
[1725723287452,0.55,2312.5,2312.3,4.32464]
[1725723287666,3.55,2312.5,2312.3,4.32464]
[1725723288131,3.55,2312.5,2312.2,4.32478]
[1725723288332,8.861725,2312.5,2312.4,0.05757135]
[1725723288539,4.537395,2312.5,2312.2,4.32487]
[1725723288740,4.537395,2312.5,2312.4,0.05755988]
[1725723288982,0.45327849,2312.4,2312.2,8.64963]
[1725723289190,0.45327849,2312.4,2312.3,4.32469]
[1725723289706,0.45327849,2312.4,2312.3,8.64938]
[1725723292149,10.94869004,2312.9,2312.3,4.32469]
[1725723292341,7.27,2312.9,2312.7,4.32386]
[1725723292541,7.27,2312.9,2312.8,4.32376]
[1725723293478,10.27,2312.9,2312.8,8.64752]
[1725723293682,10.27,2312.9,2312.7,4.32393]
[1725723293981,3.0,2312.8,2312.7,8.64778]
[1725723296007,3.0,2312.8,2312.5,4.3243]
[1725723296008,3.0,2312.8,2312.5,4.32419]
[1725723296213,4.394869,2312.8,2312.6,4.32412]
[1725723296509,4.394869,2312.8,2312.5,4.32419]
[1725723296871,4.394869,2312.8,2312.7,0.05677439]
[1725723297070,4.394869,2312.8,2312.6,0.05689659]
[1725723297912,1.3573559,2312.7,2312.6,0.05689659]
[1725723298768,1.3573559,2312.7,2312.3,8.64912]
[1725723299121,1.3573559,2312.7,2312.6,0.05689659]
[1725723299270,1.3573559,2312.7,2312.3,4.32468]
[1725723299473,1.3573559,2312.7,2312.4,0.05714103]
[1725723299809,1.63998549,2312.6,2312.4,0.05714103]
[1725723300010,3.0,2312.6,2312.5,4.32432]
[1725723300309,3.0,2312.8,2312.6,4.32413]
[1725723300519,3.0,2312.8,2312.5,0.0570188]
[1725723300520,3.0,2312.8,2312.7,8.6479]
[1725723300824,0.45322176,2313.1,2312.9,4.32352]
[1725723300825,3.45322176,2313.1,2312.9,4.32352]
[1725723301117,0.45322176,2313.1,2313.0,4.32338]
[1725723301678,0.45322176,2313.1,2313.0,0.05657401]
[1725723302017,4.04521294,2313.1,2313.0,0.05657401]
[1725723302173,6.04521294,2313.1,2313.0,0.05657401]
[1725723302378,10.36841294,2313.1,2312.6,4.32413]
[1725723302581,10.36841294,2313.1,2312.5,4.3242]
[1725723302582,3.67869004,2312.9,2312.5,4.3242]
[1725723302802,3.67869004,2312.9,2312.6,4.324]
[1725723302983,3.0,2312.8,2312.6,4.38106276]
[1725723303185,3.0,2312.8,2312.7,4.32395]
[1725723303786,3.0,2312.8,2312.7,0.05694056]
[1725723303787,3.667869,2312.8,2312.7,0.05694056]
[1725723303984,3.667869,2312.8,2312.5,4.32431]
[1725723304184,3.667869,2312.8,2312.7,0.05694056]
[1725723304403,3.667869,2312.8,2312.4,4.32436]
[1725723304588,3.667869,2312.8,2312.7,0.05694056]
[1725723304815,4.217869,2312.8,2312.4,4.32436]
[1725723305117,0.55,2312.7,2312.4,4.32436]
[1725723305291,1.8270279,2312.7,2312.4,4.32436]
[1725723305618,1.8270279,2312.7,2312.5,4.32428]
[1725723305819,3.667869,2312.8,2312.6,4.32413]
[1725723305820,3.0,2312.8,2312.6,4.32413]
[1725723306731,3.0,2312.8,2312.5,4.32428]
[1725723306732,3.0,2312.8,2312.7,4.32395]
[1725723306880,3.0,2312.8,2312.7,8.6479]
[1725723307244,3.45322176,2313.1,2313.0,4.32338]
[1725723307716,0.45322176,2313.1,2313.0,4.32338]
[1725723307916,7.27,2313.6,2313.1,4.32305]
[1725723308072,7.27,2313.6,2313.0,3.47806015]
[1725723308073,0.45319183,2313.8,2313.7,4.32195]
[1725723308276,0.45319183,2313.8,2313.7,8.64403]
[1725723308483,5.17251607,2314.4,2314.2,4.32114]
[1725723308484,3.67869004,2314.4,2314.2,4.32114]
[1725723308683,3.67869004,2314.4,2314.3,4.32096]
[1725723308895,3.67869004,2314.4,2314.2,4.32114]
[1725723308896,3.67869004,2314.6,2314.2,4.32114]
[1725723309117,3.67869004,2314.6,2314.0,4.32139]
[1725723309118,0.88512061,2314.5,2314.0,4.32139]
[1725723309325,0.88512061,2314.5,2314.1,4.32121]
[1725723309882,0.88512061,2314.5,2314.0,4.32139]
[1725723310316,0.88512061,2314.5,2314.1,4.3213]
[1725723311113,0.88512061,2314.5,2314.0,4.32139]
[1725723311316,1.01038025,2314.4,2314.0,4.32139]
[1725723311699,1.01038025,2314.4,2314.0,8.64279]
[1725723312432,1.01038025,2314.4,2314.1,4.32127]
[1725723312923,1.01038025,2314.4,2314.0,4.32139]
[1725723313427,8.64243,2314.2,2313.6,4.32217]
[1725723313630,2.0,2314.0,2313.5,4.32242]
[1725723313787,6.32159,2314.0,2313.4,4.32252]
[1725723313992,5.44825193,2314.3,2313.2,3.3916]
[1725723313993,6.89825193,2313.7,2313.2,4.32289]
[1725723314222,6.89825193,2313.7,2313.0,4.32321]
[1725723314223,3.0,2313.6,2313.0,4.32321]
[1725723314424,3.55,2313.6,2313.3,0.05548589]
[1725723314797,7.87226,2313.6,2313.1,4.3231]
[1725723314948,7.87226,2313.6,2313.4,0.05539238]
[1725723315103,1.47705119,2313.5,2313.4,0.05539238]
[1725723315307,1.47705119,2313.5,2313.1,4.32309]
[1725723315308,2.02705119,2313.5,2313.1,4.32309]
[1725723315643,2.02705119,2313.5,2313.2,0.05587714]
[1725723315946,1.48493112,2313.4,2313.2,0.05587714]
[1725723316114,4.48493112,2313.4,2313.2,0.05587714]
[1725723316946,4.48493112,2313.4,2313.0,4.32321]
[1725723317125,4.48493112,2313.4,2313.0,8.64647]
[1725723317444,4.48493112,2313.4,2313.1,0.05599929]
[1725723317608,0.59619823,2313.3,2313.1,0.05599929]
[1725723317812,5.4463,2313.3,2313.1,0.05599929]
[1725723318023,0.55,2313.2,2312.7,4.32384]
[1725723318344,4.8731,2313.2,2312.7,4.32384]
[1725723318518,7.89825193,2313.1,2312.6,8.64805]
[1725723318843,0.55,2313.0,2312.7,4.32385]
[1725723319347,0.55,2313.0,2312.8,4.32374]